bitfinex/quotes_SOLUSD_20260305
["timestamp","ask_amount","ask_price","bid_price","bid_amount"]
[1772730353968,11.69567781,89.275,89.227,0.49541302]
[1772730354180,0.49433365,89.275,89.227,0.49541302]
[1772730354490,11.69452162,89.285,89.227,0.49541302]
[1772730354686,0.49433365,89.284,89.227,0.49541302]
[1772730355996,11.69467414,89.283,89.229,0.49541301]
[1772730356193,0.49433365,89.282,89.229,0.49541301]
[1772730356414,0.49433365,89.31,89.233,0.49541301]
[1772730358274,0.49433365,89.308,89.238,0.63757458]
[1772730358480,0.49433365,89.308,89.239,0.49541301]
[1772730360178,0.45631403,89.306,89.242,0.47136666]
[1772730360989,11.34937728,89.34,89.241,0.28432314]
[1772730360990,0.45631403,89.317,89.253,0.47136666]
[1772730361302,0.45631403,89.329,89.257,3.69383402]
[1772730361480,0.45631403,89.329,89.252,3.69383402]
[1772730361481,0.45631403,89.329,89.264,0.47136666]
[1772730362294,0.45631403,89.329,89.265,140.03248752]
[1772730362478,0.45631403,89.329,89.27,0.47136666]
[1772730362904,0.45631403,89.328,89.27,0.47136666]
[1772730364008,0.45631403,89.339,89.27,0.47136666]
[1772730364206,0.45631403,89.368,89.277,0.47136666]
[1772730364394,0.45631403,89.357,89.283,0.47136666]
[1772730364910,0.45631403,89.357,89.29,0.47136666]
[1772730366625,0.45631403,89.357,89.285,0.28432314]
[1772730366626,0.45631403,89.355,89.292,0.47136666]
[1772730367896,0.45631403,89.349,89.292,0.47136666]
[1772730368788,0.45631403,89.347,89.294,0.47136666]
[1772730370385,0.45631403,89.339,89.284,11.20021504]
[1772730370797,0.45631403,89.337,89.281,0.47136666]
[1772730371915,0.45631403,89.337,89.275,11.20124337]
[1772730372112,0.45631403,89.299,89.243,11.20536064]
[1772730372282,0.45631403,89.299,89.234,0.47136666]
[1772730372283,0.45631403,89.289,89.234,11.20647253]
[1772730373415,0.45631403,89.287,89.229,28.01763475]
[1772730373592,0.45631403,89.287,89.222,11.20799802]
[1772730373919,0.45631403,89.279,89.222,11.20799802]
[1772730374505,0.45631403,89.279,89.222,11.67936468]
[1772730374690,0.45631403,89.279,89.223,0.47136666]
[1772730375406,0.45631403,89.277,89.224,11.20774679]
[1772730375708,0.45631403,89.277,89.225,0.47136666]
[1772730377514,0.45631403,89.275,89.227,0.47136667]
[1772730377699,0.45631403,89.275,89.227,1e-08]
[1772730378593,0.45631403,89.269,89.227,1e-08]
[1772730379811,0.45631403,89.267,89.227,1e-08]
[1772730380814,0.45631403,89.266,89.227,1e-08]
[1772730382110,0.45631403,89.263,89.227,1e-08]
[1772730382811,0.45631403,89.248,89.213,0.6680533]
[1772730383014,0.45631403,89.248,89.192,0.47136666]
[1772730384301,39.21700448,89.247,89.193,11.21164216]
[1772730384502,0.45631403,89.246,89.193,11.21164216]
[1772730385323,0.45631403,89.238,89.192,0.47136666]
[1772730385816,39.21700448,89.247,89.194,0.47136666]
[1772730386225,11.20485842,89.247,89.196,0.47136666]
[1772730386420,0.45631403,89.252,89.198,0.47136666]
[1772730386622,0.45631403,89.252,89.2,0.47136666]
[1772730386806,0.45631403,89.252,89.201,0.47136666]
[1772730387012,0.45631403,89.252,89.202,0.47136666]
[1772730388504,39.21436814,89.253,89.203,11.2103853]
[1772730388505,11.20435625,89.251,89.203,11.2103853]
[1772730388805,0.49310161,89.3,89.23,0.49464151]
[1772730389808,11.19720517,89.308,89.238,0.49464151]
[1772730390027,11.19720517,89.308,89.248,0.49464151]
[1772730390325,0.49330162,89.307,89.248,0.49464151]
[1772730390530,0.49330162,89.307,89.242,0.28432314]
[1772730390531,0.49330162,89.305,89.251,0.4679175]
[1772730391726,0.49330162,89.304,89.24,0.4679175]
[1772730391931,0.49330162,89.298,89.24,0.4679175]
[1772730392226,0.49330162,89.298,89.24,11.67353887]
[1772730392430,0.49330162,89.298,89.241,0.4679175]
[1772730392816,39.19504573,89.297,89.241,0.4679175]
[1772730393037,0.49330162,89.296,89.243,0.4679175]
[1772730395314,0.49330162,89.293,89.243,0.4679175]
[1772730395510,39.19592362,89.295,89.243,0.4679175]
[1772730395511,0.49330162,89.288,89.243,0.4679175]
[1772730395832,0.49330162,89.288,89.244,11.20523508]
[1772730396032,0.49330162,89.288,89.245,0.4679175]
[1772730396810,11.19883532,89.295,89.245,0.4679175]
[1772730397420,28.48735283,89.305,89.247,0.4679175]
[1772730397624,0.49330162,89.304,89.247,0.4679175]
[1772730399521,39.19241233,89.303,89.249,0.4679175]
[1772730399716,0.49330162,89.302,89.249,0.4679175]
[1772730400231,0.49330162,89.301,89.249,0.4679175]
[1772730400616,0.49330162,89.298,89.206,0.4679175]
[1772730400816,0.49330162,89.288,89.207,0.4679175]
[1772730401230,0.49330162,89.288,89.211,0.4679175]
[1772730401532,0.49330162,89.286,89.216,0.4679175]
[1772730402113,0.49330162,89.286,89.217,0.4679175]
[1772730403137,0.49330162,89.279,89.217,0.4679175]
[1772730403435,0.28432314,89.239,89.19,0.2]
[1772730403738,0.49330162,89.228,89.19,0.2]
[1772730403943,0.49330162,89.208,89.161,11.21566604]
[1772730404232,0.49330162,89.208,89.152,28.04192225]
[1772730404233,0.49330162,89.198,89.154,11.2165259]
[1772730404635,0.49330162,89.198,89.128,3.69383402]
[1772730404835,0.49330162,89.198,89.145,11.21761892]
[1772730405041,0.49330162,89.188,89.091,89.79541609]
[1772730405343,0.49330162,89.179,89.141,11.21818243]
[1772730405539,0.49330162,89.177,89.141,11.21818243]
[1772730406046,0.49330162,89.169,89.122,0.4679175]
[1772730406218,0.49330162,89.168,89.122,11.68838479]
[1772730406420,0.49330162,89.148,89.103,11.22295308]
[1772730406934,0.49330162,89.148,89.108,11.22228847]
[1772730407127,0.49330162,89.148,89.103,11.2228794]
[1772730407543,0.49330162,89.148,89.101,11.22321859]
[1772730407842,0.36950494,89.146,89.1,0.4679175]
[1772730408224,0.36950494,89.146,89.101,11.22321859]
[1772730408627,0.36950494,89.146,89.09,11.6924706]
[1772730408827,0.36950494,89.146,89.091,0.4679175]
[1772730409750,0.36950494,89.143,89.092,11.69226985]
[1772730409954,0.36950494,89.143,89.093,0.4679175]
[1772730410954,0.36950494,89.143,89.086,11.22502274]
[1772730411128,0.36950494,89.143,89.087,0.4679175]
[1772730411737,0.36950494,89.14,89.089,0.4679175]
[1772730413940,0.51166651,89.138,89.091,0.4679175]
[1772730414255,0.36950494,89.137,89.091,0.4679175]
[1772730415435,11.36133229,89.16,89.091,0.4679175]
[1772730415436,11.21717573,89.149,89.091,0.4679175]
[1772730415743,0.36950494,89.148,89.092,0.4679175]
[1772730416075,0.36950494,89.145,89.093,11.22422637]
[1772730416370,0.36950494,89.144,89.094,0.4679175]
[1772730418381,0.36950494,89.128,89.076,0.4679175]
[1772730418577,0.36950494,89.128,89.066,0.4679175]
[1772730418868,0.36950494,89.128,89.071,0.4679175]
[1772730420155,0.28432314,89.126,89.071,0.4679175]
[1772730420348,0.36950494,89.125,89.07,0.2]
[1772730420557,0.36950494,89.125,89.061,1.19422039]
[1772730420558,0.36950494,89.108,89.061,0.71018739]
[1772730420759,11.36133229,89.09,89.04,0.5]
[1772730420960,0.28432314,89.089,89.029,0.5]
[1772730421162,0.28432314,89.079,89.029,0.5]
[1772730421343,4.82477569,89.094,88.993,0.5]
[1772730421548,11.36133229,89.06,88.993,0.5]
[1772730421857,11.36133229,89.04,88.982,0.5]
[1772730422058,3.69383402,89.047,88.992,0.5]
[1772730422263,3.69383402,89.043,88.993,11.23683885]
[1772730422466,3.69383402,89.043,88.994,0.5]
[1772730422973,3.69383402,89.043,88.948,89.93924584]
[1772730422974,11.36133229,89.03,88.965,0.5]
[1772730423180,11.36133229,89.03,88.968,0.5]
[1772730423379,11.36133229,89.01,88.955,0.5]
[1772730423562,11.36133229,89.02,88.955,0.5]
[1772730423761,3.69383402,89.027,88.955,0.5]
[1772730424076,3.69383402,89.043,88.955,0.5]
[1772730424458,39.30729318,89.042,88.96,0.5]
[1772730424655,11.23000653,89.048,88.966,0.5]
[1772730424854,11.23000653,89.048,88.979,0.5]
[1772730426670,39.57970087,89.069,88.984,0.5]
[1772730426868,84.488704,89.069,88.985,0.5]
[1772730427186,0.28432314,89.059,88.985,0.5]
[1772730427753,11.36133229,89.05,88.985,0.5]
[1772730427978,0.28432314,89.056,88.985,0.5]
[1772730428160,0.28432314,89.049,88.985,0.5]
[1772730428663,0.28432314,89.047,88.987,0.5]
[1772730429684,0.28432314,89.039,88.987,0.5]
[1772730430655,39.30905904,89.038,88.987,0.5]
[1772730430885,0.28432314,89.037,88.987,0.5]
[1772730431556,0.46863954,89.033,88.929,39.64156317]
[1772730431884,0.46863954,89.029,88.933,4.82477569]
[1772730432180,0.46863954,89.029,88.929,230.52097736]
[1772730432181,0.46863954,89.016,88.929,39.35724003]
[1772730432684,0.46863954,89.016,88.932,3.69383402]
[1772730432879,0.46863954,89.013,88.929,28.11231431]
[1772730433292,0.28432314,89.014,88.929,28.11231431]
[1772730433293,0.46863954,89.008,88.929,28.11231431]
[1772730433790,0.46863954,89.008,88.93,0.484033]
[1772730434158,0.46863954,89.008,88.931,0.484033]
[1772730434993,0.46863954,89.005,88.933,0.484033]
[1772730436787,0.46863954,89.005,88.679,43.62896114]
[1772730436788,0.46863954,88.989,88.927,11.24505781]
[1772730436987,0.46863954,88.987,88.928,0.484033]
[1772730438591,0.46863954,88.979,88.928,0.484033]
[1772730439083,0.46863954,88.969,88.914,0.484033]
[1772730439995,39.33556608,88.978,88.914,0.484033]
[1772730440368,0.28432314,88.977,88.914,0.484033]
[1772730440564,39.33556608,88.978,88.914,0.484033]
[1772730440893,0.46863954,88.989,88.91,95.87571726]
[1772730440894,0.46863954,88.999,88.92,0.484033]
[1772730441090,0.46863954,88.997,88.926,0.484033]
[1772730441566,0.46863954,88.996,88.926,0.484033]
[1772730442269,0.28432314,88.997,88.926,0.484033]
[1772730442686,39.32672643,88.998,88.926,0.484033]
[1772730442871,0.28432314,88.997,88.926,0.484033]
[1772730443073,11.23646006,88.996,88.931,0.484033]
[1772730443400,0.46863954,88.959,88.91,0.2735379]
[1772730443687,3.69383402,88.993,88.846,45.02151866]
[1772730443688,0.75296268,88.939,88.894,11.24930745]
[1772730443890,0.46863954,88.938,88.897,11.24885807]
[1772730444204,0.46863954,88.938,88.901,11.24846739]
[1772730445084,0.46863954,88.938,88.878,28.12822767]
[1772730445271,0.46863954,88.935,88.893,11.24946243]
[1772730445482,0.46863954,88.928,88.9,1e-08]
[1772730445806,0.46863954,88.928,88.886,0.484033]
[1772730446006,4.82477569,88.97,88.851,3.69383402]
[1772730446007,28.10639103,88.948,88.888,0.484033]
[1772730446188,0.46863954,88.946,88.888,0.484033]
[1772730446382,0.46863954,88.938,88.888,0.484033]
[1772730446883,0.28432314,88.939,88.866,11.25278165]
[1772730446884,11.36133229,88.93,88.866,11.25278165]
[1772730447208,0.14216157,88.929,88.885,0.49679246]
[1772730447390,0.76529375,88.933,88.885,0.49679246]
[1772730447593,0.48097061,88.933,88.885,0.49679246]
[1772730447797,28.59185304,88.934,88.885,0.49679246]
[1772730448098,0.48097061,88.933,88.885,0.49679246]
[1772730449486,0.28432314,88.931,88.886,11.25036563]
[1772730449784,0.48097061,88.918,88.865,0.49679246]
[1772730450605,0.47506191,88.908,88.883,1e-08]
[1772730450807,0.47506191,88.888,88.841,0.45977652]
[1772730451110,0.47506191,88.878,88.85,1e-08]
[1772730451705,0.47506191,88.875,88.85,1e-08]
[1772730452279,0.47506191,88.875,88.83,0.65977652]
[1772730452280,0.47506191,88.875,88.83,0.2]
[1772730452480,0.47506191,88.875,88.759,45.06537241]
[1772730452481,0.14216157,88.839,88.8,1e-08]
[1772730452684,0.47506191,88.834,88.783,11.26334676]
[1772730452888,0.47506191,88.834,88.769,28.16287229]
[1772730453103,0.47506191,88.834,88.79,11.4624159]
[1772730453312,0.47506191,88.834,88.79,0.2]
[1772730453682,11.25608671,88.841,88.79,11.46251809]
[1772730453883,0.47506191,88.839,88.79,0.2]
[1772730454602,0.28432314,88.84,88.791,0.45977652]
[1772730454986,0.47506191,88.839,88.791,0.45977652]
[1772730455402,0.47506191,88.839,88.791,11.72217924]
[1772730455598,0.47506191,88.839,88.792,0.45977652]
[1772730455800,0.47506191,88.836,88.79,0.2]
[1772730455995,39.39755509,88.838,88.79,0.2]
[1772730455996,0.47506191,88.819,88.79,1e-08]
[1772730456735,11.45217277,88.81,88.78,1e-08]
[1772730457007,0.47506191,88.809,88.78,1e-08]
[1772730457790,0.47506191,88.815,88.78,1e-08]
[1772730458397,39.40731399,88.816,88.781,0.45977652]
[1772730458601,11.25853951,88.822,88.781,0.45977652]
[1772730459205,0.47506191,88.821,88.78,1e-08]
[1772730459407,11.25853951,88.822,88.781,0.45977652]
[1772730459614,0.47506191,88.855,88.781,0.45977652]
[1772730459802,0.47506191,88.867,88.786,0.45977652]
[1772730459988,11.25289762,88.866,88.793,4.82477569]
[1772730460187,39.38514167,88.866,88.797,0.45977652]
[1772730460596,11.25289762,88.866,88.797,0.45977652]
[1772730461405,0.47506191,88.926,88.802,0.45977652]
[1772730461725,28.11610828,88.917,88.837,0.45977652]
[1772730462017,39.35945301,88.924,88.846,0.45977652]
[1772730462193,39.35945301,88.924,88.838,129.44910959]
[1772730462194,11.245558,88.924,88.855,0.45977652]
[1772730462395,11.24416708,88.935,88.867,0.45977652]
[1772730462598,39.3545848,88.935,88.867,0.45977652]
[1772730462894,11.24416708,88.935,88.867,0.45977652]
[1772730463088,0.47506191,88.945,88.867,0.45977652]
[1772730463302,0.47506191,88.939,88.867,0.45977652]
[1772730463707,0.47506191,88.938,88.867,0.45977652]
[1772730464014,11.45217277,88.94,88.847,3.69383402]
[1772730464015,0.47506191,88.935,88.87,0.45977652]
[1772730465213,0.47506191,88.918,88.87,0.45977652]
[1772730465419,0.47506191,88.918,88.834,0.45977652]
[1772730465588,0.47506191,88.931,88.854,0.45977652]
[1772730465789,11.45217277,88.93,88.854,0.45977652]
[1772730465996,0.47506191,88.917,88.856,0.45977652]
[1772730466190,0.47506191,88.916,88.856,0.45977652]
[1772730466421,39.3621089,88.918,88.857,0.45977652]
[1772730467620,0.47506191,88.917,88.857,0.45977652]
[1772730468003,39.36299428,88.916,88.86,0.45977652]
[1772730469120,0.47506191,88.915,88.86,0.45977652]
[1772730470206,39.83894161,88.914,88.863,0.45977652]
[1772730470611,11.24682277,88.914,88.863,0.45977652]
[1772730471020,39.3638797,88.914,88.863,0.45977652]
[1772730471758,0.47506191,88.913,88.863,0.45977652]
[1772730472235,11.45217277,88.91,88.863,0.45977652]
[1772730472400,0.47506191,88.909,88.863,0.45977652]
[1772730473128,0.47506191,88.909,88.864,11.25315088]
[1772730473332,0.47506191,88.909,88.865,0.45977652]
[1772730474307,11.24758176,88.908,88.867,0.45977652]
[1772730475430,11.24568446,88.923,88.868,0.45977652]
[1772730475940,39.35989563,88.923,88.868,0.45977652]
[1772730476910,3.69383402,88.93,88.871,0.45977652]
[1772730477619,39.35546984,88.933,88.871,0.45977652]
[1772730479016,11.24290291,88.945,88.88,4.82477569]
[1772730479261,0.47506191,88.944,88.884,0.45977652]
[1772730479418,0.47506191,88.939,88.884,0.45977652]
[1772730479618,0.47506191,88.938,88.884,0.45977652]
[1772730479933,0.47506191,88.929,88.884,0.45977652]
[1772730480334,0.4759868,88.928,88.884,0.45977652]
[1772730480935,39.35812519,88.927,88.884,0.45977652]
[1772730481346,11.24517862,88.927,88.886,0.46810093]
[1772730481657,44.95628762,88.976,88.887,0.46810093]
[1772730481658,0.4759868,88.958,88.887,0.46810093]
[1772730481934,39.34264066,88.962,88.893,0.46810093]
[1772730482117,39.34264066,88.962,88.894,0.46810093]
[1772730482318,11.2399643,88.969,88.897,0.46810093]
[1772730482513,11.2399643,88.969,88.914,0.46810093]
[1772730482514,11.23990207,88.969,88.914,0.46810093]
[1772730482714,28.09557955,88.982,88.914,0.46810093]
[1772730482715,11.23928992,88.974,88.914,0.46810093]
[1772730483048,28.09217674,88.993,88.921,0.46810093]
[1772730483431,11.23671258,88.994,88.93,0.46810093]
[1772730483625,11.23671258,88.994,88.936,0.46810093]
[1772730483825,11.23481895,89.009,88.943,0.46810093]
[1772730484133,0.4759868,89.008,88.943,0.46810093]
[1772730484644,0.4759868,89.007,88.943,0.46810093]
[1772730485144,39.79917848,89.006,88.945,0.46810093]
[1772730485349,0.4759868,89.005,88.945,0.46810093]
[1772730485646,0.4759868,89.005,88.946,0.46810093]
[1772730486777,39.80006212,89.004,88.949,0.46810093]
[1772730486937,0.4759868,89.003,88.949,0.46810093]
[1772730487325,0.4759868,89.016,88.949,0.46810093]
[1772730488854,28.08452318,89.017,88.956,0.46810093]
[1772730489631,0.4759868,89.016,88.956,0.46810093]
[1772730490531,0.4759868,89.009,88.937,0.46810093]
[1772730490733,0.4759868,89.009,88.942,0.46810093]
[1772730490937,0.4759868,88.999,88.944,0.46810093]
[1772730491351,0.4759868,88.979,88.93,0.46810093]
[1772730491550,0.4759868,88.979,88.932,0.46810093]
[1772730491852,0.4759868,88.991,88.932,0.46810093]
[1772730492156,0.4759868,88.989,88.932,0.46810093]
[1772730492848,0.4759868,88.987,88.934,0.46810093]
[1772730495153,0.4759868,88.985,88.934,0.46810093]
[1772730495347,0.4759868,88.985,88.935,11.71226801]
[1772730495552,0.4759868,88.985,88.936,0.46810093]
[1772730496946,0.4759868,88.979,88.925,0.46810093]
[1772730497254,0.4759868,88.968,88.914,0.46810093]
[1772730497837,0.4759868,88.959,88.914,0.46810093]
[1772730498456,0.4759868,88.959,88.904,0.46810093]
[1772730498953,0.4759868,88.949,88.904,0.46810093]
[1772730499152,0.76030994,88.947,88.893,0.46810093]
[1772730499354,0.4759868,88.946,88.893,0.46810093]
[1772730500449,0.4759868,88.946,88.895,0.46810093]
[1772730501361,0.4759868,88.944,88.895,0.46810093]
[1772730502863,0.4759868,88.942,88.895,0.46810093]
[1772730503169,0.4759868,88.942,88.897,0.46810093]
[1772730504947,0.4759868,88.94,88.897,0.46810093]
[1772730506339,0.4759868,88.939,88.883,16.08811143]
[1772730506547,0.4759868,88.939,88.884,4.83747602]
[1772730507163,0.48857526,88.937,88.885,11.2504922]
[1772730507461,0.48857526,88.937,88.886,0.28432314]
[1772730507762,11.24265011,88.947,88.889,0.28432314]
[1772730507955,3.69383402,88.979,88.893,0.28432314]
[1772730507956,0.48857526,88.959,88.893,0.28432314]
[1772730508358,0.48857526,88.959,88.894,0.49503223]
[1772730508961,0.48857526,88.957,88.898,3.69383402]
[1772730509164,0.48857526,88.957,88.9,0.49503223]
[1772730511569,39.34529429,88.956,88.902,0.28432314]
[1772730511770,11.24082496,88.962,88.904,3.69383402]
[1772730511971,11.24082496,88.962,88.906,0.47972908]
[1772730512266,11.23911211,88.975,88.913,0.47972908]
[1772730513347,39.33689238,88.975,88.913,0.47972908]
[1772730513553,39.81842557,88.975,88.918,0.47972908]
[1772730513781,39.81842557,88.975,88.919,0.47972908]
[1772730514569,0.48153319,88.974,88.919,0.47972908]
[1772730514878,11.71950855,88.984,88.922,0.47972908]
[1772730515059,0.48153319,88.983,88.922,0.47972908]
[1772730515673,0.48153319,88.983,88.921,0.28432314]
[1772730515674,0.48153319,88.981,88.925,0.47972908]
[1772730517261,11.23822795,88.982,88.925,0.47972908]
[1772730517467,11.71976114,88.982,88.928,0.47972908]
[1772730517673,11.71976114,88.982,88.93,0.76405222]
[1772730517858,11.71976114,88.982,88.931,0.47972908]
[1772730518060,11.23822795,88.982,88.931,0.47972908]
[1772730519774,39.33070379,88.989,88.934,0.47972908]
[1772730520077,0.48153319,88.988,88.934,0.47972908]
[1772730520863,39.33070379,88.989,88.934,0.47972908]
[1772730521369,0.48153319,88.988,88.934,0.47972908]
[1772730521874,0.48153319,88.985,88.926,0.47972908]
[1772730522555,0.48153319,88.985,88.929,0.47972908]
[1772730523862,0.48153319,88.983,88.932,0.47972908]
[1772730524662,0.48153319,88.983,88.931,0.28432314]
[1772730524663,0.48153319,88.983,88.926,11.24527304]
[1772730524868,0.48153319,88.979,88.922,0.47972908]
[1772730525074,0.48153319,88.978,88.917,11.24635535]
[1772730525268,140.47469206,88.984,88.903,0.47972908]
[1772730525269,0.48153319,88.968,88.903,0.47972908]
[1772730525566,0.48153319,88.968,88.905,0.47972908]
[1772730526175,95.5410433,88.967,88.906,11.24783479]
[1772730526382,0.48153319,88.965,88.907,0.47972908]
[1772730527679,0.48153319,88.963,88.908,4.83747602]
[1772730527871,0.48153319,88.963,88.907,0.47972908]
[1772730527872,0.48153319,88.963,88.906,11.24783479]
[1772730528482,0.48153319,88.963,88.907,0.47972908]
[1772730529565,0.48153319,88.959,88.907,0.47972908]
[1772730529770,0.48153319,88.958,88.907,0.47972908]
[1772730532365,0.48153319,88.955,88.894,0.47972908]
[1772730532887,0.48153319,88.948,88.894,0.47972908]
[1772730534375,0.48153319,88.946,88.897,0.47972908]
[1772730534681,0.48153319,88.946,88.886,28.12591409]
[1772730534682,0.48153319,88.943,88.884,0.47972908]
[1772730536687,0.28432314,88.946,88.886,0.47972908]
[1772730536688,0.48153319,88.941,88.886,0.47972908]
[1772730538202,0.48153319,88.919,88.866,3.69383402]
[1772730538366,0.48153319,88.919,88.851,11.25479735]
[1772730538367,0.48153319,88.918,88.851,11.25479735]
[1772730539069,0.48153319,88.915,88.852,0.28432314]
[1772730539676,0.48153319,88.915,88.846,28.13827025]
[1772730540094,0.48153319,88.915,88.847,0.28432314]
[1772730540273,0.48153319,88.915,88.848,0.20836049]
[1772730540788,44.9829139,88.923,88.848,0.20836049]
[1772730540789,0.46052109,88.958,88.852,0.20836049]
[1772730541003,0.46052109,88.956,88.863,0.20836049]
[1772730541179,0.46052109,88.949,88.876,0.20836049]
[1772730541369,0.46052109,88.949,88.877,0.20836049]
[1772730541566,95.55178342,88.957,88.858,39.38868756]
[1772730541567,0.46052109,88.946,88.859,0.20836049]
[1772730541772,0.46052109,88.919,88.86,0.20836049]
[1772730543890,0.46052109,88.909,88.852,0.28432314]
[1772730544099,0.46052109,88.909,88.85,0.20836049]
[1772730544100,0.46052109,88.908,88.85,0.20836049]
[1772730544492,0.46052109,88.889,88.836,11.25665653]
[1772730544809,0.46052109,88.888,88.829,0.20836049]
[1772730545301,0.46052109,88.888,88.819,0.20836049]
[1772730545478,0.46052109,88.878,88.82,11.25871085]
[1772730545798,0.46052109,88.878,88.819,0.20836049]
[1772730545984,39.3802671,88.877,88.819,0.20836049]
[1772730546172,0.46052109,88.876,88.82,11.25872551]
[1772730548113,0.28432314,88.869,88.795,0.20836049]
[1772730548390,0.46052109,88.849,88.795,0.20836049]
[1772730548578,0.46052109,88.849,88.812,0.30836049]
[1772730549804,0.46052109,88.849,88.804,11.26064552]
[1772730550097,0.46052109,88.847,88.797,0.30836049]
[1772730550309,0.46052109,88.847,88.798,11.26151489]
[1772730551595,0.46052109,88.846,88.797,0.30836049]
[1772730552081,0.46052109,88.837,88.788,0.30836049]
[1772730552796,0.46052109,88.837,88.772,28.16179742]
[1772730552797,0.46052109,88.836,88.779,0.30836049]
[1772730553002,0.46052109,88.836,88.781,11.26367128]
[1772730553197,0.46052109,88.836,88.779,0.30836049]
[1772730553382,0.46052109,88.836,88.783,0.40836049]
[1772730554322,0.46052109,88.834,88.785,0.40836049]
[1772730554677,0.46052109,88.834,88.781,11.26367128]
[1772730555004,0.46052109,88.829,88.777,0.40836049]
[1772730555386,0.46052109,88.819,88.76,11.46631026]
[1772730555586,0.46052109,88.818,88.761,0.40836049]
[1772730556300,0.46052109,88.816,88.761,0.40836049]
[1772730556505,0.46052109,88.808,88.76,0.2]
[1772730556683,0.46052109,88.808,88.762,0.40836049]
[1772730557522,0.46052109,88.808,88.76,0.2]
[1772730557879,0.46052109,88.808,88.763,0.40836049]
[1772730558519,11.26037361,88.807,88.765,0.40836049]
[1772730559011,0.46052109,88.806,88.765,0.40836049]
[1772730559886,11.26037361,88.807,88.765,0.40836049]
[1772730560609,0.46052109,88.813,88.767,0.40836049]
[1772730560797,0.46052109,88.813,88.76,0.2]
[1772730560988,0.46052109,88.813,88.767,0.40836049]
[1772730562913,0.46052109,88.811,88.769,0.40836049]
[1772730563092,0.46052109,88.811,88.768,11.26532083]
[1772730563404,39.40908885,88.812,88.76,0.60836049]
[1772730563405,0.46052109,88.809,88.76,0.2]
[1772730564327,0.46052109,88.799,88.76,0.2]
[1772730565010,0.46052109,88.797,88.76,0.2]
[1772730565305,0.46052109,88.796,88.76,0.2]
[1772730565508,0.46052109,88.788,88.76,1e-08]
[1772730565709,0.46052109,88.779,88.733,0.2735379]
[1772730565909,0.46052109,88.779,88.733,11.54327442]
[1772730566415,0.46052109,88.779,88.733,0.2735379]
[1772730566706,0.46052109,88.779,88.734,11.26963431]
[1772730566909,0.46052109,88.779,88.741,0.40836049]
[1772730567108,11.43735612,88.8,88.741,0.40836049]
[1772730567109,0.48178552,88.777,88.741,0.40836049]
[1772730567509,0.48178552,88.777,88.741,11.67710614]
[1772730567702,0.48178552,88.777,88.74,0.2]
[1772730568306,0.48178552,88.777,88.73,0.2]
[1772730568307,0.48178552,88.769,88.73,0.2]
[1772730568520,0.48178552,88.768,88.73,0.2]
[1772730569009,0.48178552,88.766,88.73,0.2]
[1772730569405,0.48178552,88.766,88.732,0.47349764]
[1772730570006,0.48178552,88.766,88.73,0.2]
[1772730570212,0.48887507,88.765,88.73,0.2]
[1772730570411,0.48887507,88.758,88.703,0.49354057]
[1772730570614,11.49298817,88.75,88.703,0.49354057]
[1772730570914,11.49298817,88.75,88.679,28.19148968]
[1772730570915,0.48887507,88.748,88.694,0.49354057]
[1772730571118,3.69383402,88.764,88.705,1e-08]
[1772730571119,0.48887507,88.735,88.705,1e-08]
[1772730571424,0.48887507,88.728,88.705,1e-08]
[1772730572517,11.49298817,88.71,88.705,1e-08]
[1772730572721,0.48887507,88.709,88.705,1e-08]
[1772730573214,0.48887507,88.707,88.705,1e-08]
[1772730573712,0.48887507,88.698,88.633,0.49354057]
[1772730574216,0.48887507,88.689,88.621,11.77747918]
[1772730574415,0.48887507,88.689,88.622,0.49354057]
[1772730574620,0.48887507,88.679,88.622,0.49354057]
[1772730575300,0.48887507,88.677,88.622,0.49354057]
[1772730575500,0.48887507,88.677,88.612,0.49354057]
[1772730575820,0.48887507,88.659,88.606,11.28580963]
[1772730576133,39.46863933,88.678,88.608,0.49354057]
[1772730576631,0.48887507,88.693,88.617,0.49354057]
[1772730576795,28.18870647,88.688,88.617,0.49354057]
[1772730577200,0.48887507,88.687,88.617,0.49354057]
[1772730577427,0.48887507,88.685,88.619,0.49354057]
[1772730577607,0.48887507,88.685,88.62,0.49354057]
[1772730578421,3.69383402,88.683,88.62,0.49354057]
[1772730578731,0.48887507,88.675,88.612,0.49354057]
[1772730578908,0.48887507,88.675,88.613,0.49354057]
[1772730579397,0.48887507,88.668,88.613,0.49354057]
[1772730579810,96.14646209,88.669,88.584,0.49354057]
[1772730579811,0.48887507,88.638,88.584,0.49354057]
[1772730580001,0.48887507,88.638,88.556,0.68608596]
[1772730580002,0.48887507,88.638,88.59,0.49354057]
[1772730580202,0.48887507,88.649,88.591,0.49354057]
[1772730580622,0.48887507,88.649,88.592,0.49354057]
[1772730581016,0.48887507,88.649,88.563,4.82477569]
[1772730581017,0.48887507,88.639,88.586,0.49354057]
[1772730581207,0.48887507,88.639,88.587,0.49354057]
[1772730581404,0.48887507,88.639,88.589,0.49354057]
[1772730581405,39.4864505,88.638,88.589,0.49354057]
[1772730581719,39.4864505,88.638,88.59,0.49354057]